fUSD/lending_fUSD_20241215
["ID","MTS","AMOUNT","RATE_DAILY","PERIOD"]
[345395919,1734233442564,-320.879224,0.00013978,2]
[345395920,1734233442574,-1283.95,0.00013978,2]
[345395921,1734233442584,-320.879224,0.00013978,2]
[345395922,1734233442594,-1283.95,0.00013978,2]
[345395923,1734233442604,-500.0,0.00013978,2]
[345395924,1734233442613,-500.0,0.00013978,2]
[345395925,1734233442623,-10544.58,0.00013978,2]
[345395926,1734233442634,-10544.58,0.00013978,2]
[345395927,1734233442644,-500.0,0.00013978,2]
[345395928,1734233442654,-500.0,0.00013978,2]
[345395929,1734233442663,-500.0,0.00013978,2]
[345395930,1734233442673,-18549.34,0.00013978,2]
[345395931,1734233442682,-500.0,0.00013978,2]
[345395932,1734233442692,-18549.34,0.00013978,2]
[345395933,1734233442701,-503.57502319,0.00013978,2]
[345395934,1734233442713,-151.0,0.00013978,2]
[345395935,1734233442723,-500.0,0.00013978,2]
[345395936,1734233442732,-151.0,0.00013978,2]
[345395937,1734233442742,-500.0,0.00013978,2]
[345395938,1734233442750,-151.0,0.00013978,2]
[345395939,1734233442760,-500.0,0.00013978,2]
[345395940,1734233442770,-151.0,0.00013978,2]
[345395941,1734233442780,-500.0,0.00013978,2]
[345395942,1734233442790,-500.0,0.00013978,2]
[345395943,1734233442799,-259.68717228,0.00013978,2]
[345395944,1734233442810,-503.58774039,0.00013978,2]
[345395945,1734233442819,-151.0,0.00013978,2]
[345395946,1734233442829,-151.0,0.00013978,2]
[345395947,1734233442838,-515.76,0.00013978,2]
[345395948,1734233442848,-662.78,0.00013978,2]
[345395949,1734233442858,-662.78,0.00013978,2]
[345395950,1734233442869,-2543.79,0.00013978,2]
[345395951,1734233442879,-2543.79,0.00013978,2]
[345395952,1734233442888,-500.0,0.00013978,2]
[345395953,1734233442898,-500.0,0.00013978,2]
[345395954,1734233442909,-500.0,0.00013978,2]
[345395955,1734233442918,-500.0,0.00013978,2]
[345395956,1734233442928,-500.0,0.00013978,2]
[345395957,1734233442938,-500.0,0.00013978,2]
[345395958,1734233442950,-500.0,0.00013978,2]
[345395959,1734233442960,-500.0,0.00013978,2]
[345395960,1734233442970,-500.0,0.00013978,2]
[345395961,1734233442980,-580.94,0.00013978,2]
[345395962,1734233442989,-580.94,0.00013978,2]
[345395963,1734233442999,-500.0,0.00013978,2]
[345395964,1734233443008,-655.262782,0.00013978,2]
[345395965,1734233443018,-8942.94,0.00013978,2]
[345395966,1734233443028,-655.262782,0.00013978,2]
[345395968,1734233443037,-8942.94,0.00013978,2]
[345395970,1734233443046,-500.0,0.00013978,2]
[345395972,1734233443055,-655.262782,0.00013978,2]
[345395973,1734233443064,-655.262782,0.00013978,2]
[345395974,1734233443078,-500.0,0.00013978,2]
[345395975,1734233443087,-500.0,0.00013978,2]
[345395976,1734233443097,-200.0,0.00013979,2]
[345395977,1734233443106,-500.0,0.00013979,2]
[345395978,1734233443116,-500.0,0.00013979,2]
[345395979,1734233443126,-506.90010544,0.00013979,2]
[345395980,1734233443135,-902.8,0.00013979,2]
[345395981,1734233443144,-360.67491149,0.00013979,2]
[345395982,1734233443154,-500.0,0.00013979,2]
[345395983,1734233443163,-500.0,0.00013979,2]
[345395984,1734233443172,-500.0,0.00013979,2]
[345395985,1734233443181,-503.68700931,0.00013979,2]
[345395986,1734233443191,-500.0,0.00013979,2]
[345395987,1734233443200,-500.0,0.00013979,2]
[345395988,1734233443209,-500.0,0.00013979,2]
[345395989,1734233443220,-501.19825991,0.00013979,2]
[345395990,1734233443229,-505.36581869,0.00013979,2]
[345395991,1734233443239,-500.0,0.00013979,2]
[345395992,1734233443249,-500.0,0.00013979,2]
[345395993,1734233443258,-500.0,0.00013979,2]
[345395994,1734233443268,-572.05286671,0.00013979,2]
[345395995,1734233443278,-519.45042924,0.00013979,2]
[345395996,1734233443288,-500.0,0.00013979,2]
[345395997,1734233443297,-500.0,0.00013979,2]
[345395998,1734233443307,-500.0,0.00013979,2]
[345395999,1734233443316,-500.0,0.00013979,2]
[345396000,1734233443325,-505.15161757,0.00013979,2]
[345396001,1734233443334,-500.0,0.00013979,2]
[345396002,1734233443344,-500.0,0.00013979,2]
[345396003,1734233443353,-504.52927945,0.00013979,2]
[345396004,1734233443363,-500.0,0.00013979,2]
[345396005,1734233443371,-500.0,0.00013979,2]
[345396006,1734233443380,-500.0,0.00013979,2]
[345396007,1734233443390,-490.60786522,0.00013979,2]
[345396008,1734233443399,-500.0,0.00013979,2]
[345396009,1734233443408,-500.0,0.00013979,2]
[345396010,1734233443418,-502.41211585,0.00013979,2]
[345396011,1734233443427,-506.16495324,0.00013979,2]
[345396012,1734233443437,-510.10616079,0.00013979,2]
[345396013,1734233443446,-505.10431281,0.00013979,2]
[345396014,1734233443455,-510.92004767,0.00013979,2]
[345396015,1734233443466,-510.08451762,0.00013979,2]
[345396016,1734233443475,-506.13360019,0.00013979,2]
[345396017,1734233443484,-505.84766858,0.00013979,2]
[345396018,1734233443494,-500.0,0.00013979,2]
[345396019,1734233443503,-367.13978058,0.00013979,2]
[345396020,1734233443513,-397.42668565,0.00013979,2]
[345396021,1734233443523,-500.0,0.00013979,2]
[345396022,1734233443532,-500.0,0.00013979,2]
[345396023,1734233443542,-500.0,0.00013979,2]
[345396024,1734233443551,-500.0,0.00013979,2]
[345396025,1734233443561,-287.24980082,0.00013979,2]
[345396026,1734233443571,-500.0,0.00013979,2]
[345396027,1734233443581,-500.0,0.00013979,2]
[345396028,1734233443590,-500.0,0.00013979,2]
[345396029,1734233443599,-416.40232972,0.00013979,2]
[345396030,1734233443609,-508.46726951,0.00013979,2]
[345396031,1734233443619,-500.0,0.00013979,2]
[345396032,1734233443628,-500.0,0.00013979,2]
[345396033,1734233443637,-4113.7,0.00013979,2]
[345396034,1734233443647,-500.0,0.00013979,2]
[345396035,1734233443656,-500.0,0.00013979,2]
[345396036,1734233443666,-500.0,0.00013979,2]
[345396037,1734233443675,-500.0,0.00013979,2]
[345396038,1734233443685,-513.82054597,0.00013979,2]
[345396039,1734233443694,-500.0,0.00013979,2]
[345396040,1734233443703,-510.93240403,0.00013979,2]
[345396041,1734233443712,-500.0,0.00013979,2]
[345396042,1734233443722,-500.0,0.00013979,2]
[345396043,1734233443731,-503.92756973,0.00013979,2]
[345396044,1734233443741,-500.0,0.00013979,2]
[345396045,1734233443751,-500.0,0.00013979,2]
[345396046,1734233443760,-500.0,0.00013979,2]
[345396047,1734233443769,-500.0,0.00013979,2]
[345396048,1734233443779,-500.0,0.00013979,2]
[345396049,1734233443788,-500.0,0.00013979,2]
[345396050,1734233443797,-500.0,0.00013979,2]
[345396051,1734233443807,-500.0,0.00013979,2]
[345396052,1734233443817,-500.0,0.00013979,2]
[345396053,1734233443827,-500.0,0.00013979,2]
[345396054,1734233443836,-500.0,0.00013979,2]
[345396055,1734233443845,-500.0,0.00013979,2]
[345396056,1734233443855,-509.88000434,0.00013979,2]
[345396057,1734233443864,-154.057933,0.00013979,2]
[345396058,1734233443875,-500.0,0.00013979,2]
[345396059,1734233443884,-500.0,0.00013979,2]
[345396060,1734233443894,-500.0,0.00013979,2]
[345396061,1734233443903,-924.79,0.00013979,2]
[345396062,1734233443912,-1000.0,0.00013979,2]
[345396063,1734233443922,-510.30089885,0.00013979,2]
[345396064,1734233443932,-500.0,0.00013979,2]
[345396065,1734233443942,-503.48067019,0.00013979,2]
[345396066,1734233443952,-214.76952027,0.00013979,2]
[345396067,1734233443962,-472.61674986,0.00013979,2]
[345396068,1734233443972,-504.06424037,0.00013979,2]
[345396069,1734233443990,-500.0,0.00013979,2]
[345396070,1734233444000,-500.0,0.00013979,2]
[345396071,1734233444010,-550.653301,0.00013979,2]
[345396072,1734233444020,-550.653301,0.00013979,2]
[345396073,1734233444031,-500.0,0.00013979,2]
[345396074,1734233444040,-500.0,0.00013979,2]
[345396075,1734233444050,-500.0,0.00013979,2]
[345396076,1734233444060,-500.0,0.00013979,2]
[345396077,1734233444070,-500.0,0.00013979,2]
[345396078,1734233444083,-3339.33,0.00013979,2]
[345396079,1734233444092,-500.0,0.00013979,2]
[345396080,1734233444102,-500.0,0.00013979,2]
[345396081,1734233444112,-500.0,0.00013979,2]
[345396082,1734233444124,-500.0,0.00013979,2]
[345396083,1734233444134,-225.38002354,0.00013979,2]
[345396084,1734233444144,-500.0,0.00013979,2]
[345396085,1734233444154,-151.0,0.00013979,2]
[345396086,1734233444164,-151.0,0.00013979,2]
[345396087,1734233444174,-500.0,0.00013979,2]
[345396088,1734233444184,-573.91794978,0.00013979,2]
[345396089,1734233444195,-509.67036218,0.00013979,2]
[345396090,1734233444206,-503.74137984,0.00013979,2]
[345396091,1734233444221,-151.33525,0.00013979,2]
[345396092,1734233444230,-151.0,0.00013979,2]
[345396093,1734233444241,-151.0,0.00013979,2]
[345396094,1734233444251,-1360.889855,0.00013979,2]
[345396095,1734233444261,-1360.889855,0.00013979,2]
[345396096,1734233444270,-500.0,0.00013979,2]
[345396097,1734233444279,-1360.889855,0.00013979,2]
[345396098,1734233444288,-1360.889855,0.00013979,2]
[345396099,1734233444298,-506.86882513,0.00013979,2]
[345396100,1734233444308,-188.069419,0.00013979,2]
[345396101,1734233444318,-188.069419,0.00013979,2]
[345396102,1734233444329,-500.0,0.00013979,2]
[345396103,1734233444340,-506.84911722,0.00013979,2]
[345396104,1734233444350,-188.069419,0.00013979,2]
[345396105,1734233444359,-188.069419,0.00013979,2]
[345396106,1734233444370,-504.76198349,0.00013979,2]
[345396107,1734233444379,-502.23694327,0.00013979,2]
[345396108,1734233444389,-474.41214353,0.00013979,2]
[345396109,1734233444399,-508.41790627,0.00013979,2]
[345396110,1734233444409,-513.00949313,0.00013979,2]
[345396111,1734233444419,-500.0,0.00013979,2]
[345396112,1734233444430,-500.0,0.00013979,2]
[345396113,1734233444440,-504.55094323,0.00013979,2]
[345396114,1734233444449,-151.0,0.00013979,2]
[345396115,1734233444459,-151.0,0.00013979,2]
[345396116,1734233444471,-151.0,0.00013979,2]
[345396117,1734233444481,-151.0,0.00013979,2]
[345396118,1734233444491,-500.0,0.00013979,2]
[345396119,1734233444501,-151.0,0.00013979,2]
[345396120,1734233444511,-503.5446632,0.00013979,2]
[345396121,1734233444521,-500.0,0.00013979,2]
[345396122,1734233444531,-508.5172617,0.00013979,2]
[345396123,1734233444541,-500.0,0.00013979,2]
[345396124,1734233444550,-500.0,0.00013979,2]
[345396125,1734233444560,-515.97137253,0.00013979,2]
[345396126,1734233444570,-500.0,0.00013979,2]
[345396127,1734233444580,-500.0,0.00013979,2]
[345396128,1734233444590,-508.040245,0.00013979,2]
[345396129,1734233444599,-505.80521044,0.00013979,2]
[345396130,1734233444609,-504.44260081,0.00013979,2]
[345396131,1734233444619,-151.0,0.00013979,2]
[345396132,1734233444628,-151.0,0.00013979,2]
[345396133,1734233444638,-151.0,0.00013979,2]
[345396134,1734233444647,-402.92003327,0.00013979,2]
[345396135,1734233444657,-504.79120491,0.00013979,2]
[345396136,1734233444667,-500.0,0.00013979,2]
[345396137,1734233444677,-500.0,0.00013979,2]
[345396138,1734233444687,-505.79244194,0.00013979,2]
[345396139,1734233444697,-506.67335352,0.00013979,2]
[345396140,1734233444707,-500.0,0.00013979,2]
[345396141,1734233444717,-500.0,0.00013979,2]
[345396142,1734233444726,-151.0,0.00013979,2]
[345396143,1734233444736,-507.19903209,0.00013979,2]
[345396144,1734233444746,-151.0,0.00013979,2]
[345396145,1734233444758,-151.0,0.00013979,2]
[345396146,1734233444768,-500.0,0.00013979,2]
[345396147,1734233444778,-151.0,0.00013979,2]
[345396148,1734233444788,-151.0,0.00013979,2]
[345396149,1734233444800,-151.0,0.00013979,2]
[345396150,1734233444810,-151.0,0.00013979,2]
[345396151,1734233444820,-267.98634787,0.00013979,2]
[345396152,1734233444830,-151.0,0.00013979,2]
[345396153,1734233444840,-151.0,0.00013979,2]
[345396154,1734233444850,-504.83985034,0.00013979,2]
[345396155,1734233444860,-151.0,0.00013979,2]
[345396156,1734233444870,-151.0,0.00013979,2]
[345396157,1734233444880,-500.0,0.00013979,2]
[345396158,1734233444890,-212.6231,0.00013979,2]
[345396159,1734233444899,-151.0,0.00013979,2]
[345396160,1734233444909,-152.391984,0.00013979,2]
[345396161,1734233444918,-151.0,0.00013979,2]
[345396162,1734233444928,-151.0,0.00013979,2]
[345396163,1734233444938,-151.0,0.00013979,2]
[345396164,1734233444948,-151.0,0.00013979,2]
[345396165,1734233444958,-158.007879,0.00013979,2]
[345396166,1734233444969,-500.0,0.00013979,2]
[345396167,1734233444980,-151.0,0.00013979,2]
[345396168,1734233444990,-151.0,0.00013979,2]
[345396169,1734233445000,-151.0,0.00013979,2]
[345396170,1734233445009,-500.0,0.00013979,2]
[345396171,1734233445020,-500.0,0.00013979,2]
[345396172,1734233445029,-388.02515763,0.00013979,2]
[345396173,1734233445040,-503.04833359,0.00013979,2]
[345396174,1734233445049,-514.53888131,0.00013979,2]
[345396175,1734233445059,-151.0,0.00013979,2]
[345396176,1734233445069,-151.0,0.00013979,2]
[345396177,1734233445082,-151.0,0.00013979,2]
[345396178,1734233445092,-151.0,0.00013979,2]
[345396179,1734233445102,-282.0,0.00013979,2]
[345396180,1734233445112,-507.96336895,0.00013979,2]
[345396181,1734233445124,-152.093937,0.00013979,2]
[345396182,1734233445133,-152.093937,0.00013979,2]
[345396183,1734233445145,-150.691116,0.00013979,2]
[345396184,1734233445156,-150.883906,0.00013979,2]
[345396185,1734233445166,-150.883906,0.00013979,2]
[345396186,1734233445175,-500.0,0.00013979,2]
[345396187,1734233445185,-306.261387,0.00013979,2]
[345396188,1734233445195,-2424.69224,0.00013979,2]
[345396189,1734233445205,-306.261387,0.00013979,2]
[345396190,1734233445216,-306.261387,0.00013979,2]
[345396191,1734233445225,-151.0,0.00013979,2]
[345396192,1734233445235,-500.0,0.00013979,2]
[345396193,1734233445246,-151.0,0.00013979,2]
[345396194,1734233445256,-500.0,0.00013979,2]
[345396195,1734233445266,-306.261387,0.00013979,2]
[345396196,1734233445278,-151.0,0.00013979,2]
[345396197,1734233445287,-500.0,0.00013979,2]
[345396198,1734233445298,-306.261387,0.00013979,2]
[345396199,1734233445308,-500.0,0.00013979,2]
[345396200,1734233445318,-306.261387,0.00013979,2]
[345396201,1734233445328,-151.0,0.00013979,2]
[345396202,1734233445337,-151.0,0.00013979,2]
[345396203,1734233445348,-151.0,0.00013979,2]
[345396204,1734233445358,-165.076312,0.00013979,2]
[345396205,1734233445367,-165.076312,0.00013979,2]
[345396206,1734233445377,-165.076312,0.00013979,2]
[345396207,1734233445387,-510.25639807,0.00013979,2]
[345396208,1734233445396,-857.965,0.00013979,2]
[345396209,1734233445407,-857.965,0.00013979,2]
[345396210,1734233445417,-857.965,0.00013979,2]
[345396211,1734233445427,-165.076312,0.00013979,2]
[345396212,1734233445436,-165.076312,0.00013979,2]
[345396213,1734233445447,-182.095184,0.00013979,2]
[345396214,1734233445457,-165.076312,0.00013979,2]
[345396215,1734233445468,-182.095184,0.00013979,2]
[345396216,1734233445478,-857.965,0.00013979,2]
[345396217,1734233445488,-182.095184,0.00013979,2]
[345396218,1734233445498,-857.965,0.00013979,2]
[345396219,1734233445512,-857.965,0.00013979,2]
[345396220,1734233445523,-182.095184,0.00013979,2]
[345396221,1734233445533,-182.095184,0.00013979,2]
[345396222,1734233445690,-182.095184,0.00013979,2]
[345396223,1734233445701,-500.0,0.00013979,2]
[345396224,1734233445711,-500.0,0.00013979,2]
[345396225,1734233445723,-525.8361628,0.00013979,2]
[345396226,1734233445732,-578.94,0.00013979,2]
[345396227,1734233445742,-151.0,0.00013979,2]
[345396228,1734233445753,-151.0,0.00013979,2]
[345396229,1734233445764,-151.0,0.00013979,2]
[345396230,1734233445774,-500.0,0.00013979,2]
[345396231,1734233445783,-500.0,0.00013979,2]
[345396232,1734233445794,-500.0,0.00013979,2]
[345396233,1734233445807,-500.0,0.00013979,2]
[345396234,1734233445816,-911.18,0.00013979,2]
[345396235,1734233445826,-911.18,0.00013979,2]
[345396237,1734233445836,-911.18,0.00013979,2]
[345396239,1734233445846,-911.18,0.00013979,2]
[345396240,1734233445856,-500.0,0.00013979,2]
[345396241,1734233445865,-6755.58,0.00013979,2]
[345396242,1734233445875,-500.0,0.00013979,2]
[345396243,1734233445885,-609.52069457,0.00013979,2]
[345396244,1734233445895,-500.0,0.00013979,2]
[345396245,1734233445904,-525.02,0.00013979,2]
[345396246,1734233445915,-500.0,0.00013979,2]
[345396247,1734233445930,-1056.16,0.00013979,2]
[345396248,1734233445940,-1056.16,0.00013979,2]
[345396249,1734233445951,-1056.16,0.00013979,2]
[345396250,1734233445960,-1056.16,0.00013979,2]
[345396251,1734233445978,-500.0,0.00013979,2]
[345396252,1734233445988,-500.0,0.00013979,2]
[345396253,1734233445998,-500.0,0.00013979,2]
[345396254,1734233446007,-500.0,0.00013979,2]
[345396255,1734233446017,-501.92552969,0.00013979,2]
[345396256,1734233446028,-503.79413694,0.00013979,2]
[345396257,1734233446038,-160.476214,0.00013979,2]
[345396258,1734233446048,-318.79484437,0.00013979,2]
[345396259,1734233446057,-160.476214,0.00013979,2]
[345396260,1734233446068,-502.67011516,0.00013979,2]
[345396261,1734233446081,-160.476214,0.00013979,2]
[345396262,1734233446091,-160.476214,0.00013979,2]
[345396263,1734233446102,-160.476214,0.00013979,2]
[345396264,1734233446111,-1000.0,0.00013979,2]
[345396265,1734233446123,-160.476214,0.00013979,2]
[345396266,1734233446134,-160.476214,0.00013979,2]
[345396267,1734233446145,-160.476214,0.00013979,2]
[345396268,1734233446156,-160.476214,0.00013979,2]
[345396269,1734233446167,-160.476214,0.00013979,2]
[345396270,1734233446176,-500.0,0.00013979,2]
[345396271,1734233446187,-188.75895826,0.00013979,2]
[345396272,1734233446196,-2563.75,0.00013979,2]
[345396273,1734233446206,-500.0,0.00013979,2]
[345396274,1734233446222,-500.0,0.00013979,2]
[345396275,1734233446232,-207.999852,0.00013979,2]
[345396276,1734233446243,-207.999852,0.00013979,2]
[345396277,1734233446252,-207.999852,0.00013979,2]
[345396278,1734233446264,-207.999852,0.00013979,2]
[345396279,1734233446274,-207.999852,0.00013979,2]
[345396280,1734233446284,-500.0,0.00013979,2]
[345396281,1734233446295,-500.0,0.00013979,2]
[345396282,1734233446306,-500.0,0.00013979,2]
[345396283,1734233446316,-500.0,0.00013979,2]
[345396284,1734233446326,-500.0,0.00013979,2]
[345396285,1734233446336,-207.999852,0.00013979,2]
[345396286,1734233446347,-207.999852,0.00013979,2]
[345396287,1734233446357,-207.999852,0.00013979,2]
[345396288,1734233446368,-207.999852,0.00013979,2]
[345396289,1734233446378,-207.999852,0.00013979,2]
[345396290,1734233446388,-3656.05,0.00013979,2]
[345396291,1734233446398,-3656.05,0.00013979,2]
[345396292,1734233446407,-3656.05,0.00013979,2]
[345396293,1734233446417,-3656.05,0.00013979,2]
[345396294,1734233446426,-500.0,0.00013979,2]
[345396295,1734233446435,-500.0,0.00013979,2]
[345396296,1734233446445,-500.0,0.00013979,2]
[345396297,1734233446455,-582.74363105,0.00013979,2]
[345396298,1734233446467,-500.0,0.00013979,2]
[345396299,1734233446477,-636.244271,0.00013979,2]
[345396300,1734233446487,-502.33048265,0.00013979,2]
[345396301,1734233446498,-500.0,0.00013979,2]
[345396302,1734233446508,-438.48611394,0.00013979,2]
[345396303,1734233446518,-151.0,0.00013979,2]
[345396304,1734233446527,-151.0,0.00013979,2]
[345396305,1734233446538,-151.0,0.00013979,2]
[345396306,1734233446547,-151.0,0.00013979,2]
[345396307,1734233446558,-151.0,0.00013979,2]
[345396308,1734233446568,-458.84559813,0.00013979,2]
[345396309,1734233446578,-500.0,0.00013979,2]
[345396310,1734233446588,-502.22241293,0.00013979,2]
[345396311,1734233446598,-500.0,0.00013979,2]
[345396312,1734233446608,-500.0,0.00013979,2]
[345396313,1734233446619,-654.387944,0.00013979,2]
[345396314,1734233446630,-654.387944,0.00013979,2]
[345396315,1734233446640,-500.0,0.00013979,2]
[345396316,1734233446651,-654.387944,0.00013979,2]
[345396317,1734233446660,-654.387944,0.00013979,2]
[345396318,1734233446671,-654.387944,0.00013979,2]
[345396319,1734233446681,-500.0,0.00013979,2]
[345396320,1734233446690,-500.0,0.00013979,2]
[345396321,1734233446700,-624.67076489,0.00013979,2]
[345396322,1734233446710,-1394.99,0.00013979,2]
[345396323,1734233446720,-654.387944,0.00013979,2]
[345396324,1734233446729,-654.387944,0.00013979,2]
[345396325,1734233446739,-654.387944,0.00013979,2]
[345396326,1734233446748,-654.387944,0.00013979,2]
[345396327,1734233446758,-654.387944,0.00013979,2]
[345396328,1734233446768,-435.36763922,0.00013979,2]
[345396329,1734233446779,-600.46611525,0.00013979,2]
[345396330,1734233446789,-500.0,0.00013979,2]
[345396331,1734233446798,-10011.11,0.00013979,2]
[345396332,1734233446808,-550.44850181,0.00013979,2]
[345396333,1734233446818,-500.0,0.00013979,2]
[345396334,1734233446828,-502.97853773,0.00013979,2]
[345396335,1734233446838,-6841.52,0.00013979,2]
[345396336,1734233446847,-320.879224,0.00013979,2]
[345396337,1734233446857,-320.879224,0.00013979,2]
[345396338,1734233446866,-500.0,0.00013979,2]
[345396339,1734233446877,-320.879224,0.00013979,2]
[345396340,1734233446887,-500.0,0.00013979,2]
[345396341,1734233446897,-320.879224,0.00013979,2]
[345396342,1734233446907,-500.0,0.00013979,2]
[345396343,1734233446917,-320.879224,0.00013979,2]
[345396344,1734233446927,-500.0,0.00013979,2]
[345396345,1734233446937,-1283.95,0.00013979,2]
[345396346,1734233446948,-320.879224,0.00013979,2]
[345396347,1734233446959,-320.879224,0.00013979,2]
[345396348,1734233446970,-320.879224,0.00013979,2]
[345396349,1734233446980,-320.879224,0.00013979,2]
[345396350,1734233446990,-320.879224,0.00013979,2]
[345396351,1734233446999,-500.0,0.00013979,2]
[345396352,1734233447010,-503.27562342,0.00013979,2]
[345396353,1734233447020,-500.0,0.00013979,2]
[345396354,1734233447031,-10544.58,0.00013979,2]
[345396355,1734233447041,-500.0,0.00013979,2]
[345396356,1734233447051,-500.0,0.00013979,2]
[345396357,1734233447060,-500.0,0.00013979,2]
[345396358,1734233447072,-500.0,0.00013979,2]
[345396359,1734233447083,-500.0,0.00013979,2]
[345396360,1734233447093,-500.0,0.00013979,2]
[345396361,1734233447102,-570.67428964,0.00013979,2]
[345396362,1734233447112,-505.68804807,0.00013979,2]
[345396363,1734233447123,-500.0,0.00013979,2]
[345396364,1734233447133,-500.0,0.00013979,2]
[345396365,1734233447143,-500.0,0.00013979,2]
[345396366,1734233447156,-18549.34,0.00013979,2]
[345396367,1734233447167,-503.77210213,0.00013979,2]
[345396368,1734233447178,-500.0,0.00013979,2]
[345396369,1734233447188,-151.0,0.00013979,2]
[345396370,1734233447198,-151.0,0.00013979,2]
[345396371,1734233447207,-151.0,0.00013979,2]
[345396372,1734233447218,-151.0,0.00013979,2]
[345396373,1734233447228,-3548.81,0.00013979,2]
[345396374,1734233447238,-151.0,0.00013979,2]
[345396375,1734233447248,-500.0,0.00013979,2]
[345396376,1734233447258,-582.92980382,0.00013979,2]
[345396377,1734233447268,-3548.81,0.00013979,2]
[345396378,1734233447278,-3548.81,0.00013979,2]
[345396379,1734233447287,-3548.81,0.00013979,2]
[345396380,1734233447297,-151.0,0.00013979,2]
[345396381,1734233447307,-265.24216919,0.00013979,2]
[345396382,1734233447317,-264.193783,0.00013979,2]
[345396383,1734233447326,-500.0,0.00013979,2]
[345396384,1734233447336,-500.0,0.00013979,2]
[345396385,1734233447345,-195.26908383,0.00013979,2]
[345396386,1734233447355,-151.0,0.00013979,2]
[345396387,1734233447365,-515.76,0.00013979,2]
[345396388,1734233447375,-151.0,0.00013979,2]
[345396389,1734233447385,-151.0,0.00013979,2]
[345396390,1734233447395,-151.0,0.00013979,2]
[345396391,1734233447406,-151.0,0.00013979,2]
[345396392,1734233447416,-662.78,0.00013979,2]
[345396393,1734233447426,-500.0,0.00013979,2]
[345396394,1734233447436,-614.49736778,0.00013979,2]
[345396395,1734233447446,-2543.79,0.00013979,2]
[345396396,1734233447456,-500.0,0.00013979,2]
[345396397,1734233447467,-500.0,0.00013979,2]
[345396398,1734233447477,-507.9544591,0.00013979,2]
[345396399,1734233447487,-500.0,0.00013979,2]
[345396400,1734233447497,-518.31393178,0.00013979,2]
[345396401,1734233447507,-624.69767323,0.00013979,2]
[345396402,1734233447517,-2582.29,0.00013979,2]
[345396403,1734233447527,-2582.29,0.00013979,2]
[345396404,1734233447536,-2582.29,0.00013979,2]
[345396405,1734233447546,-2582.29,0.00013979,2]
[345396406,1734233447556,-500.0,0.00013979,2]
[345396407,1734233447566,-504.13099207,0.00013979,2]
[345396408,1734233447576,-518.00138943,0.00013979,2]
[345396409,1734233447586,-518.11572144,0.00013979,2]
[345396410,1734233447595,-500.0,0.00013979,2]
[345396411,1734233447605,-500.0,0.00013979,2]
[345396412,1734233447615,-580.94,0.00013979,2]
[345396413,1734233447624,-506.64425766,0.00013979,2]
[345396414,1734233447634,-8942.94,0.00013979,2]
[345396415,1734233447643,-655.262782,0.00013979,2]
[345396416,1734233447653,-655.262782,0.00013979,2]
[345396417,1734233447664,-500.0,0.00013979,2]
[345396418,1734233447673,-655.262782,0.00013979,2]
[345396419,1734233447683,-3250.31,0.00013979,2]
[345396420,1734233447693,-3250.31,0.00013979,2]
[345396421,1734233447702,-655.262782,0.00013979,2]
[345396422,1734233447711,-3250.31,0.00013979,2]
[345396423,1734233447721,-3250.31,0.00013979,2]